bitfinex/quotes_SOLUSD_20250306
["timestamp","ask_amount","ask_price","bid_price","bid_amount"]
[1741295935488,6.2177,145.45,145.41,19.5559088]
[1741295935887,6.2177,145.45,145.4,19.41374723]
[1741295936088,6.2177,145.45,145.42,0.14216157]
[1741295936290,25.63144723,145.45,145.39,19.41374723]
[1741295936588,25.63144723,145.45,145.4,0.14216157]
[1741295937193,25.63144723,145.45,145.4,19.5559088]
[1741295937481,19.41374723,145.43,145.38,82.1]
[1741295937681,21.64812812,145.44,145.38,82.1]
[1741295937883,20.83944918,145.42,145.38,101.51374723]
[1741295938092,20.83944918,145.42,145.39,38.20555766]
[1741295938293,6.1881,145.44,145.41,0.14216157]
[1741295939093,19.41374723,145.43,145.38,101.54674723]
[1741295939293,19.41374723,145.41,145.38,0.033]
[1741295939610,87.64684723,145.4,145.38,0.033]
[1741295940406,93.83704723,145.39,145.38,0.033]
[1741295940606,113.5351176,145.39,145.3,82.1]
[1741295940807,113.5351176,145.39,145.29,6.48]
[1741295940808,19.41374723,145.36,145.32,0.14216157]
[1741295941397,87.64684723,145.35,145.3,19.41374723]
[1741295941610,19.41374723,145.34,145.29,6.48]
[1741295941915,19.41374723,145.34,145.3,0.14216157]
[1741295942096,19.41374723,145.33,145.28,19.41374723]
[1741295942398,19.41374723,145.31,145.25,19.41374723]
[1741295942586,19.41374723,145.3,145.24,189.68674723]
[1741295942786,19.41374723,145.3,145.25,0.14216157]
[1741295943417,19.41374723,145.28,145.24,0.033]
[1741295943918,87.64684723,145.27,145.24,0.033]
[1741295944321,25.60944723,145.26,145.24,0.033]
[1741295944627,37.33520662,145.26,145.24,0.033]
[1741295944925,31.13950662,145.25,145.24,0.033]
[1741295945414,99.37260662,145.25,145.24,0.033]
[1741295945793,0.28432314,145.24,145.23,0.033]
[1741295946005,31.42382976,145.24,145.23,0.033]
[1741295946395,31.42382976,145.24,145.19,3.67]
[1741295946396,0.28432314,145.22,145.19,3.67]
[1741295946588,0.28432314,145.22,145.13,56.24915548]
[1741295946589,31.13950662,145.2,145.13,56.24915548]
[1741295946807,31.13950662,145.19,145.14,0.14216157]
[1741295947006,31.13950662,145.19,145.13,37.59950662]
[1741295947203,31.13950662,145.18,145.13,37.59950662]
[1741295947389,31.13950662,145.17,145.12,6.493]
[1741295947786,31.13950662,145.14,145.12,0.033]
[1741295948406,37.34010662,145.15,145.12,0.033]
[1741295949292,31.13950662,145.16,145.12,0.033]
[1741295949517,31.13950662,145.15,145.12,0.033]
[1741295950408,31.13950662,145.15,145.13,0.033]
[1741295950595,37.34010662,145.15,145.13,0.033]
[1741295951112,113.13950662,145.14,145.13,0.033]
[1741295951307,82.0,145.14,145.13,0.033]
[1741295951910,43.46570662,145.17,145.13,0.033]
[1741295952096,125.46570662,145.17,145.13,0.033]
[1741295952502,31.13950662,145.16,145.13,0.033]
[1741295952704,37.33970662,145.16,145.13,0.033]
[1741295953304,31.13950662,145.15,145.13,0.033]
[1741295953714,37.33970662,145.16,145.13,0.033]
[1741295954099,6.2002,145.16,145.13,0.033]
[1741295954300,37.33970662,145.16,145.13,0.033]
[1741295955096,82.0,145.15,145.13,0.033]
[1741295955797,113.13950662,145.15,145.13,0.033]
[1741295955999,82.0,145.14,145.13,0.033]
[1741295956823,37.34040662,145.14,145.13,0.033]
[1741295958255,37.62472976,145.14,145.13,0.033]
[1741295960503,37.34040662,145.14,145.13,0.033]
[1741295960708,37.62472976,145.14,145.13,0.033]
[1741295961309,43.66932042,145.14,145.13,0.033]
[1741295961743,0.28432314,145.13,145.12,0.033]
[1741295961904,31.42382976,145.13,145.12,0.033]
[1741295963016,37.34080662,145.13,145.12,0.033]
[1741295964812,6.2013,145.13,145.12,0.033]
[1741295965613,37.34080662,145.13,145.12,0.033]
[1741295966507,25.69934027,145.13,145.12,0.033]
[1741295967434,0.28432314,145.15,145.12,0.033]
[1741295967639,19.49804027,145.13,145.12,0.033]
[1741295968629,12.70235197,145.15,145.12,0.033]
[1741295968825,19.49804027,145.13,145.12,0.033]
[1741295969717,25.98366341,145.13,145.12,0.033]
[1741295970231,6.21762883,145.15,145.12,0.033]
[1741295970527,19.49804027,145.13,145.12,0.033]
[1741295970707,6.2009,145.14,145.12,0.033]
[1741295970903,19.49804027,145.13,145.12,0.033]
[1741295971725,25.69934027,145.13,145.12,0.033]
[1741295972525,19.49804027,145.14,145.12,0.033]
[1741295972730,25.69864027,145.15,145.12,0.033]
[1741295972919,19.49804027,145.14,145.12,0.033]
[1741295973117,19.49804027,145.13,145.12,0.033]
[1741295973814,25.69934027,145.13,145.12,0.033]
[1741295974615,25.72934027,145.13,145.12,0.033]
[1741295974814,26.01366341,145.13,145.12,0.033]
[1741295976844,19.49804027,145.1,145.09,0.033]
[1741295978244,25.70064027,145.1,145.09,0.033]
[1741295979939,25.98496341,145.1,145.09,0.033]
[1741295980845,0.28432314,145.09,145.05,0.033]
[1741295981045,19.49804027,145.06,145.05,0.033]
[1741295982123,25.98666341,145.06,145.05,0.033]
[1741295983033,29.51700299,145.06,145.05,0.033]
[1741295986130,29.23267985,145.06,145.05,0.033]
[1741295987530,25.70204027,145.07,145.05,0.033]
[1741295987734,25.70104027,145.09,145.05,0.033]
[1741295987942,19.49804027,145.08,145.05,0.033]
[1741295988140,19.49804027,145.06,145.05,0.033]
[1741295988348,25.70234027,145.06,145.05,0.033]
[1741295988720,19.49804027,145.06,145.05,0.033]
[1741295988958,25.70224027,145.07,145.05,0.033]
[1741295989247,19.49804027,145.06,145.05,0.033]
[1741295990550,25.70234027,145.06,145.05,0.033]
[1741295993121,19.49804027,145.06,145.05,0.033]
[1741295993311,25.70234027,145.06,145.05,0.033]
[1741295993518,6.2043,145.06,145.05,0.033]
[1741295993736,6.204,145.07,145.05,0.033]
[1741295994240,25.70204027,145.07,145.05,0.033]
[1741295995942,25.70234027,145.06,145.05,0.033]
[1741295996135,101.49804027,145.08,145.05,0.033]
[1741295996359,88.2036,145.08,145.05,0.033]
[1741295997034,82.0,145.08,145.05,0.033]
[1741295997233,104.8819451,145.1,145.05,0.17516157]
[1741295997424,107.70074027,145.1,145.05,0.17516157]
[1741295997626,88.2027,145.1,145.05,18.82481043]
[1741295997851,88.2026,145.1,145.07,0.14216157]
[1741295998046,22.89208844,145.12,145.07,0.14216157]
[1741295998282,6.2023,145.11,145.07,0.14216157]
[1741295998933,6.2023,145.11,145.07,19.64020184]
[1741295999654,9.59584817,145.12,145.07,26.53330184]
[1741295999850,0.03,145.09,145.07,19.64020184]
[1741296000566,0.03,145.09,145.06,312.0]
[1741296001042,0.03,145.09,145.07,0.14216157]
[1741296001360,0.03,145.09,145.07,19.64020184]
[1741296001742,0.03,145.09,145.07,0.14216157]
[1741296002351,19.52804027,145.09,145.06,0.14216157]
[1741296002567,19.52804027,145.09,145.05,1.5829]
[1741296003158,0.03,145.09,145.06,0.14216157]
[1741296003554,6.233,145.09,145.06,0.14216157]
[1741296007271,0.03,145.09,145.06,0.14216157]
[1741296008669,19.49804027,145.08,145.05,0.033]
[1741296008890,19.49804027,145.06,145.05,0.033]
[1741296010072,25.70234027,145.06,145.05,0.033]
[1741296010275,41.49746341,145.06,144.99,6.38]
[1741296010463,19.49804027,145.02,144.98,0.033]
[1741296010654,19.49804027,145.02,144.98,0.17516157]
[1741296011674,6.2064,145.01,144.98,0.17516157]
[1741296011978,19.49804027,145.0,144.98,0.033]
[1741296012272,101.49804027,145.0,144.98,0.033]
[1741296012471,19.49804027,144.99,144.98,0.033]
[1741296012778,101.49804027,144.99,144.98,0.033]
[1741296013776,107.70534027,144.99,144.98,0.033]
[1741296013976,101.49804027,144.99,144.98,0.033]
[1741296014151,82.0,144.99,144.98,0.033]
[1741296014355,6.2048,145.05,145.0,0.14216157]
[1741296014660,82.0,145.04,145.0,19.64020184]
[1741296014849,101.49804027,145.04,145.0,0.14216157]
[1741296015055,19.49804027,145.03,145.0,0.14216157]
[1741296015356,82.0,145.04,144.99,6.38]
[1741296015563,19.49804027,145.03,144.99,6.38]
[1741296015977,25.70364027,145.03,144.99,6.38]
[1741296016282,111.1883011,145.04,145.0,0.14216157]
[1741296017275,25.70364027,145.03,145.0,0.14216157]
[1741296017483,19.49804027,145.01,144.99,6.38]
[1741296017660,19.49804027,145.01,144.98,0.033]
[1741296018162,39.37183231,145.01,144.98,0.033]
[1741296018674,19.49804027,145.01,144.98,0.033]
[1741296018872,101.49804027,145.0,144.98,0.033]
[1741296019073,101.49804027,144.99,144.98,0.033]
[1741296019459,107.70534027,144.99,144.98,0.033]
[1741296019868,25.70534027,144.99,144.98,0.033]
[1741296020162,0.28432314,144.98,144.94,0.033]
[1741296020459,19.49804027,144.95,144.94,0.033]
[1741296021456,25.70704027,144.95,144.94,0.033]
[1741296023469,25.99136341,144.95,144.94,0.033]
[1741296025066,3.47505548,144.95,144.94,0.033]
[1741296025388,19.49804027,144.95,144.94,0.033]
[1741296029584,22.89007631,144.97,144.94,0.033]
[1741296029792,101.49804027,144.98,144.94,0.033]
[1741296029969,82.0,144.97,144.94,0.033]
[1741296030893,82.0,144.97,144.94,18.68264886]
[1741296031095,37.01104027,145.04,144.97,18.79181043]
[1741296031096,83.6573,145.03,144.97,18.79181043]
[1741296031400,101.49804027,145.04,144.99,18.79181043]
[1741296031578,85.39545629,145.04,144.99,38.2898507]
[1741296031772,19.49804027,145.03,144.99,18.79181043]
[1741296032503,101.49804027,145.03,144.99,18.79181043]
[1741296032695,19.49804027,145.02,144.97,7.03976157]
[1741296032991,19.49804027,145.02,144.97,26.53780184]
[1741296033494,101.49804027,145.03,144.97,26.53780184]
[1741296033676,82.0,145.03,144.99,38.2898507]
[1741296034481,101.49804027,145.03,144.99,0.14216157]
[1741296035095,101.49804027,145.03,145.0,6.8965]
[1741296036178,101.49804027,145.03,144.98,25.54714886]
[1741296036581,101.49804027,145.03,144.99,18.79181043]
[1741296037136,19.49804027,145.0,144.94,0.033]
[1741296037422,82.0,144.99,144.94,6.9324]
[1741296037633,19.49804027,144.99,144.94,6.9324]
[1741296037831,19.49804027,144.98,144.95,18.64964886]
[1741296038220,19.49804027,144.99,144.95,18.64964886]
[1741296038421,19.49804027,144.98,144.94,0.17516157]
[1741296038719,19.49804027,144.97,144.94,0.17516157]
[1741296039220,19.49804027,144.98,144.94,0.17516157]
[1741296039443,19.49804027,144.99,144.94,0.17516157]
[1741296039721,19.49804027,145.0,144.95,18.79181043]
[1741296040325,19.49804027,144.99,144.94,18.82481043]
[1741296040534,19.49804027,144.98,144.94,18.82481043]
[1741296040736,19.49804027,144.98,144.94,0.17516157]
[1741296041107,19.49804027,144.99,144.94,0.17516157]
[1741296041303,19.49804027,144.99,144.95,18.64964886]
[1741296041724,19.49804027,144.99,144.94,0.17516157]
[1741296042122,19.49804027,144.98,144.94,0.17516157]
[1741296042318,19.49804027,144.97,144.94,0.033]
[1741296042540,6.2075,144.99,144.94,0.033]
[1741296042541,19.49804027,144.96,144.94,0.033]
[1741296042739,19.49804027,144.95,144.94,0.033]
[1741296043243,25.70704027,144.95,144.94,0.033]
[1741296044420,25.99136341,144.95,144.94,0.033]
[1741296045823,25.99136341,144.95,144.93,0.033]
[1741296046044,25.70744027,144.94,144.93,0.033]
[1741296050333,25.99176341,144.94,144.93,0.033]
[1741296050523,19.49804027,144.93,144.92,0.033]
[1741296052433,25.70784027,144.93,144.92,0.033]
[1741296054637,49.47606341,144.93,144.9,0.0001]
[1741296054851,19.78236341,144.91,144.9,0.0001]
[1741296056622,25.99306341,144.91,144.9,0.0001]
[1741296057422,51.87370368,144.91,144.9,0.0001]
[1741296058317,32.37566341,144.91,144.9,0.0001]
[1741296058826,35.81085172,144.91,144.9,0.0001]
[1741296059146,55.30889199,144.91,144.9,0.0001]
[1741296061546,35.81085172,144.91,144.9,0.0001]
[1741296065829,35.81085172,144.91,144.9,0.0001]
[1741296066737,29.42825172,144.91,144.9,0.0001]
[1741296068362,0.28432314,144.9,144.87,0.0001]
[1741296068534,0.28432314,144.87,144.84,0.033]
[1741296068741,0.28432314,144.87,144.83,0.033]
[1741296068742,19.49804027,144.85,144.83,0.033]
[1741296069046,19.78236341,144.84,144.83,0.033]
[1741296069454,45.49450368,144.83,144.82,0.033]
[1741296069630,51.59540919,144.83,144.82,0.033]
[1741296070025,0.28432314,144.82,144.8,0.033]
[1741296070248,19.78236341,144.82,144.81,0.0001]
[1741296071833,25.99696341,144.82,144.81,0.0001]
[1741296072255,0.28432314,144.8,144.69,313.829658]
[1741296072462,19.49804027,144.71,144.69,1.829658]
[1741296072763,19.49804027,144.72,144.69,1.829658]
[1741296072939,19.49804027,144.73,144.69,1.829658]
[1741296073135,3.42936287,144.75,144.7,19.49804027]
[1741296073333,19.49804027,144.77,144.72,19.49804027]
[1741296073554,19.49804027,144.78,144.72,19.49804027]
[1741296073933,25.71444027,144.78,144.72,19.49804027]
[1741296074137,19.49804027,144.78,144.72,19.49804027]
[1741296074437,19.49804027,144.78,144.73,19.49804027]
[1741296074856,25.71424027,144.79,144.73,26.15894027]
[1741296075053,3.38332859,144.79,144.76,19.49804027]
[1741296075358,3.38332859,144.79,144.77,19.64020184]
[1741296075551,3.38332859,144.79,144.77,0.14216157]
[1741296075768,6.215,144.81,144.77,0.14216157]
[1741296075946,19.49804027,144.81,144.77,0.14216157]
[1741296077762,88.2156,144.8,144.77,0.14216157]
[1741296077957,107.71364027,144.8,144.75,330.64964886]
[1741296079047,107.71364027,144.8,144.74,21.19470184]
[1741296079364,107.71364027,144.8,144.75,19.49804027]
[1741296080264,88.2156,144.8,144.75,19.49804027]
[1741296080477,82.0,144.8,144.75,26.40624027]
[1741296081562,107.74354027,144.8,144.75,19.49804027]
[1741296082062,107.74354027,144.8,144.75,331.49804027]
[1741296083171,107.74354027,144.8,144.75,312.0]
[1741296083670,107.74354027,144.8,144.75,331.49804027]
[1741296084384,82.03,144.8,144.77,19.64020184]
[1741296084580,82.03,144.8,144.78,19.49804027]
[1741296084783,0.03,144.8,144.78,19.49804027]
[1741296085066,0.03,144.8,144.79,45.1963507]
[1741296085245,0.03,144.8,144.79,52.8738507]
[1741296085841,0.03,144.8,144.79,54.323695]
[1741296086781,0.03,144.8,144.79,54.60801814]
[1741296087077,91.63035973,144.88,144.79,54.60801814]
[1741296087078,88.2122,144.88,144.84,0.14216157]
[1741296087446,82.0,144.88,144.84,19.64020184]
[1741296087672,88.212,144.88,144.84,19.64020184]
[1741296088047,88.212,144.88,144.84,0.14216157]
[1741296088239,88.212,144.88,144.82,331.49804027]
[1741296088444,19.49804027,144.87,144.83,0.14216157]
[1741296088873,19.49804027,144.85,144.8,101.59804027]
[1741296089162,6.2141,144.83,144.81,0.14216157]
[1741296090768,19.49804027,144.85,144.81,0.14216157]
[1741296091653,21.745,144.86,144.77,100.74964886]
[1741296091654,19.49804027,144.82,144.77,100.74964886]
[1741296091855,19.49804027,144.81,144.77,18.64964886]
[1741296092354,19.49804027,144.8,144.75,21.15634027]
[1741296092559,19.49804027,144.8,144.75,1.6583]
[1741296093054,6.2158,144.79,144.76,18.64964886]
[1741296093250,6.215,144.81,144.77,0.14216157]
[1741296093451,107.71274027,144.82,144.77,19.64020184]
[1741296093646,15.5337,144.85,144.77,19.64020184]
[1741296093647,88.2138,144.84,144.79,19.64020184]
[1741296093850,88.2138,144.84,144.79,26.02020184]
[1741296094058,107.71184027,144.84,144.79,6.52216157]
[1741296094267,19.49804027,144.82,144.79,6.38]
[1741296094868,6.215,144.81,144.79,6.38]
[1741296095462,19.49804027,144.8,144.79,6.38]
[1741296095661,19.49804027,144.8,144.77,0.14216157]
[1741296096156,107.71304027,144.81,144.77,0.14216157]
[1741296096359,88.215,144.81,144.77,0.14216157]
[1741296096771,107.71304027,144.81,144.77,0.14216157]
[1741296097379,82.0,144.81,144.77,19.64020184]
[1741296097772,88.2151,144.81,144.77,19.64020184]
[1741296098558,88.2151,144.81,144.77,0.14216157]
[1741296100075,82.0,144.81,144.77,26.54750184]
[1741296100287,82.0,144.81,144.79,0.14216157]
[1741296100659,88.2145,144.83,144.79,0.14216157]
[1741296100962,107.71254027,144.83,144.79,0.14216157]
[1741296102886,19.49804027,144.82,144.76,19.49804027]
[1741296103059,88.2145,144.83,144.77,18.79181043]
[1741296103060,19.49804027,144.81,144.77,18.79181043]
[1741296103259,19.49804027,144.82,144.77,18.79181043]
[1741296103466,19.49804027,144.81,144.77,18.79181043]
[1741296103660,19.49804027,144.8,144.75,103.25634027]
[1741296103878,19.49804027,144.8,144.75,109.63634027]
[1741296104074,19.49804027,144.8,144.75,90.1383]
[1741296104283,19.49804027,144.8,144.75,88.48]
[1741296104475,82.0,144.79,144.72,0.033]
[1741296104681,19.49804027,144.74,144.72,0.033]
[1741296104983,19.49804027,144.73,144.72,0.033]
[1741296105761,25.71644027,144.73,144.72,0.033]
[1741296107283,26.00076341,144.73,144.72,0.033]
[1741296108164,29.42936806,144.73,144.72,0.033]
[1741296109967,29.42936806,144.73,144.69,1.829658]
[1741296110290,19.49804027,144.7,144.69,1.829658]
[1741296111471,19.78236341,144.7,144.69,1.829658]
[1741296112070,26.00206341,144.7,144.69,1.829658]
[1741296113977,45.50010368,144.7,144.69,5.8e-05]
[1741296114171,65.65465254,144.7,144.69,5.8e-05]
[1741296116282,18.933972,144.69,144.62,0.033]
[1741296116475,19.49804027,144.64,144.62,0.033]
[1741296117799,6.2227,144.63,144.62,0.033]
[1741296120085,25.72074027,144.63,144.62,0.033]
[1741296120798,41.27764027,144.63,144.58,0.033]
[1741296121004,19.49804027,144.61,144.58,0.033]
[1741296121511,6.2227,144.63,144.58,0.033]
[1741296121691,25.72074027,144.63,144.58,19.53104027]
[1741296122387,19.49804027,144.62,144.58,0.033]
[1741296122899,9.6822328,144.64,144.58,26.44734027]
[1741296123079,25.72044027,144.64,144.58,26.44734027]
[1741296123279,19.49804027,144.63,144.58,19.53104027]
[1741296123887,19.49804027,144.61,144.58,0.033]
[1741296124385,19.49804027,144.6,144.58,0.033]
[1741296125992,25.72234027,144.6,144.58,0.033]
[1741296126508,19.49804027,144.59,144.58,0.033]
[1741296128000,25.72244027,144.59,144.58,0.033]
[1741296131608,9.67939883,144.61,144.58,0.033]
[1741296131911,29.1774391,144.61,144.58,0.033]
[1741296132097,19.49804027,144.6,144.58,0.033]
[1741296133114,19.49804027,144.59,144.58,0.033]
[1741296134515,25.72244027,144.59,144.58,0.033]
[1741296135012,6.2244,144.59,144.58,0.033]
[1741296135899,19.49804027,144.59,144.58,0.033]
[1741296137118,25.72244027,144.59,144.58,0.033]
[1741296137299,6.2244,144.59,144.58,0.033]
[1741296137491,25.72244027,144.59,144.58,0.033]
[1741296139215,6.2244,144.59,144.58,0.033]
[1741296140120,3.45569883,144.61,144.58,0.033]
[1741296140333,6.2232,144.62,144.58,0.033]
[1741296140505,25.75124027,144.62,144.58,0.033]
[1741296140908,19.49804027,144.61,144.58,0.033]
[1741296141532,25.72204027,144.6,144.58,0.033]
[1741296141708,19.49804027,144.59,144.58,0.033]
[1741296143233,25.72244027,144.59,144.58,0.033]
[1741296143719,25.72244027,144.59,144.54,0.033]
[1741296143720,26.00676341,144.59,144.54,0.033]
[1741296143943,19.49804027,144.55,144.54,0.033]
[1741296145350,25.72374027,144.56,144.54,0.033]
[1741296145710,19.49804027,144.55,144.54,0.033]
[1741296146619,6.2257,144.56,144.54,0.033]
[1741296146620,29.13569008,144.56,144.54,0.033]
[1741296146821,19.49804027,144.55,144.54,0.033]
[1741296147512,25.72424027,144.55,144.54,0.033]
[1741296148523,29.13579008,144.56,144.54,0.033]
[1741296148710,9.63774981,144.56,144.54,0.033]
[1741296148916,29.13579008,144.56,144.54,0.033]
[1741296149829,19.49804027,144.55,144.54,0.033]
[1741296150724,29.13579008,144.56,144.54,0.033]
[1741296151328,3.41194981,144.56,144.54,0.033]
[1741296151532,25.72334027,144.57,144.54,0.033]
[1741296151736,19.49804027,144.56,144.54,0.033]
[1741296152228,19.49804027,144.55,144.54,0.033]
[1741296152931,19.49804027,144.56,144.54,0.033]
[1741296153832,6.2262,144.55,144.54,0.033]
[1741296154227,23.05206884,144.57,144.54,0.033]
[1741296154827,29.27736884,144.57,144.54,0.033]
[1741296155026,23.05206884,144.57,144.54,0.033]
[1741296155238,19.49804027,144.59,144.54,0.033]
[1741296156021,25.72254027,144.59,144.54,0.033]
[1741296156816,0.03,144.62,144.56,0.14216157]
[1741296157016,0.03,144.62,144.57,19.49804027]
[1741296157017,29.19493895,144.62,144.57,19.49804027]
[1741296157317,25.75154027,144.62,144.56,19.49804027]
[1741296158318,19.49804027,144.61,144.55,21.07134027]
[1741296158512,19.49804027,144.6,144.55,21.07134027]
[1741296158712,19.49804027,144.61,144.55,21.07134027]
[1741296158921,25.75154027,144.62,144.56,19.49804027]
[1741296159122,25.75154027,144.62,144.57,19.49804027]
[1741296159719,0.03,144.62,144.58,19.49804027]
[1741296159933,0.03,144.62,144.59,19.49804027]
[1741296160239,0.03,144.62,144.6,19.49804027]
[1741296161035,0.03,144.62,144.58,38.2898507]
[1741296162745,19.49804027,144.61,144.55,46.10098913]
[1741296163920,19.49804027,144.61,144.55,26.60294886]
[1741296164139,6.224,144.6,144.55,46.10098913]
[1741296164322,6.224,144.6,144.56,19.49804027]
[1741296166241,6.224,144.6,144.55,46.10098913]
[1741296167649,3.51535468,144.61,144.56,19.49804027]
[1741296167941,88.2533,144.62,144.57,19.49804027]
[1741296168318,82.03,144.62,144.59,19.49804027]
[1741296168524,82.03,144.62,144.61,38.2898507]
[1741296168525,0.03,144.62,144.61,38.2898507]
[1741296168727,0.03,144.62,144.61,39.8737507]
[1741296168926,0.03,144.62,144.61,141.75611411]
[1741296169126,0.03,144.62,144.61,453.75611411]
[1741296170339,0.03,144.62,144.61,460.67121411]
[1741296173024,0.03,144.62,144.61,148.67121411]
[1741296173255,0.03,144.62,144.61,130.02156525]
[1741296173543,0.03,144.62,144.61,150.12265539]
[1741296173746,0.03,144.63,144.62,18.79181043]
[1741296173924,0.0001,144.63,144.62,140.17221411]
[1741296174124,0.0001,144.63,144.62,141.97221411]
[1741296174723,0.0001,144.63,144.62,148.88681411]
[1741296175954,0.0001,144.63,144.62,460.88681411]
[1741296176362,0.0001,144.63,144.62,25.56424886]
[1741296176532,0.0001,144.63,144.6,19.49804027]
[1741296176841,0.0001,144.63,144.59,19.49804027]
[1741296177147,0.0001,144.63,144.59,18.79181043]
[1741296177524,0.0001,144.63,144.62,19.49804027]
[1741296177845,0.0001,144.63,144.62,38.2898507]
[1741296178047,0.0001,144.63,144.61,19.49804027]
[1741296178226,0.0001,144.63,144.6,18.64964886]
[1741296180241,0.0001,144.63,144.59,18.64964886]
[1741296180623,0.0001,144.63,144.6,0.14216157]
[1741296180823,0.0001,144.63,144.62,38.2898507]
[1741296181048,0.0001,144.63,144.62,58.07221411]
[1741296181232,0.0001,144.63,144.62,147.88041411]
[1741296181433,82.0,144.71,144.63,19.07613357]
[1741296181645,82.0,144.71,144.68,19.49804027]
[1741296181848,88.2193,144.71,144.66,38.14768913]
[1741296182055,107.71734027,144.71,144.66,18.64964886]
[1741296182230,107.71734027,144.71,144.66,38.14768913]
[1741296182430,88.2193,144.71,144.66,38.14768913]
[1741296183550,82.0,144.74,144.7,19.49804027]
[1741296183751,82.0,144.74,144.73,19.49804027]
[1741296184055,19.49804027,144.76,144.7,350.2898507]
[1741296184257,101.49804027,144.75,144.7,330.79181043]
[1741296184552,101.49804027,144.75,144.7,18.79181043]
[1741296184754,101.49804027,144.75,144.7,38.2898507]
[1741296184958,19.49804027,144.72,144.69,6.38]
[1741296185336,25.71724027,144.72,144.69,6.38]
[1741296185728,82.0,144.75,144.7,18.79181043]
[1741296185934,0.03,144.77,144.74,19.49804027]
[1741296186950,0.03,144.77,144.73,19.49804027]
[1741296187257,0.03,144.77,144.72,19.49804027]
[1741296187644,6.2469,144.77,144.72,19.49804027]
[1741296187847,25.74494027,144.77,144.72,19.49804027]
[1741296188252,25.74494027,144.77,144.7,330.79181043]
[1741296188253,19.49804027,144.76,144.7,18.79181043]
[1741296188455,19.49804027,144.75,144.7,18.79181043]
[1741296188758,31.36009138,144.75,144.7,18.79181043]
[1741296188955,31.36009138,144.73,144.69,6.38]
[1741296189954,119.57899138,144.72,144.69,6.38]
[1741296190262,31.36009138,144.71,144.66,18.64964886]
[1741296190435,113.36009138,144.71,144.66,50.00974024]
[1741296190637,82.0,144.71,144.68,18.64964886]
[1741296190849,3.41853698,144.76,144.71,18.79181043]
[1741296190850,112.96871851,144.76,144.71,18.79181043]
[1741296191052,30.96871851,144.76,144.74,31.36009138]
[1741296191258,0.03,144.77,144.75,31.36009138]
[1741296191640,0.03,144.77,144.74,18.64964886]
[1741296191956,0.03,144.77,144.74,50.15190181]
[1741296192262,0.03,144.77,144.76,31.36009138]
[1741296192557,0.03,144.77,144.76,50.15190181]
[1741296194163,31.39009138,144.77,144.71,18.64964886]
[1741296194335,82.03,144.77,144.72,31.36009138]
[1741296194538,82.03,144.77,144.75,31.36009138]
[1741296194874,31.36009138,144.76,144.72,18.79181043]
[1741296195553,31.39009138,144.77,144.72,18.79181043]
[1741296196147,0.03,144.77,144.72,50.15190181]
[1741296196544,6.2467,144.77,144.72,50.15190181]
[1741296196738,6.2467,144.77,144.72,18.79181043]
[1741296196739,37.60679138,144.77,144.72,18.79181043]
[1741296197172,6.2467,144.77,144.7,6.38]
[1741296197353,6.2467,144.77,144.72,31.36009138]
[1741296197676,37.60679138,144.77,144.71,50.15190181]
[1741296197979,31.36009138,144.74,144.7,6.38]
[1741296198278,37.57849138,144.73,144.7,6.38]
[1741296200147,37.57849138,144.73,144.68,18.64964886]
[1741296200541,31.36009138,144.71,144.66,6.4]
[1741296200754,6.2184,144.73,144.66,6.4]
[1741296200755,31.36009138,144.7,144.66,6.4]
[1741296201162,88.2184,144.73,144.67,50.15190181]
[1741296201365,88.2184,144.73,144.68,31.36009138]
[1741296201867,113.36009138,144.73,144.69,18.79181043]
[1741296202051,88.4,144.76,144.69,18.79181043]
[1741296202246,82.0,144.75,144.7,31.36009138]
[1741296202568,82.0,144.75,144.7,38.27069138]
[1741296203664,88.2176,144.75,144.7,343.36009138]
[1741296203868,88.2176,144.75,144.7,31.36009138]
[1741296204046,31.36009138,144.72,144.68,18.64964886]
[1741296204551,6.2176,144.75,144.66,6.4]
[1741296204552,37.57939138,144.71,144.66,6.4]
[1741296205360,37.57939138,144.71,144.66,37.76009138]